[Event "*** MasterClass Titled Tuesday Blitz"]
[Site "Chess.com"]
[Date "2017.08.01"]
[Round "7"]
[White "evgenysharapov"]
[Black "IMcoach"]
[Result "0-1"]
[WhiteElo "2259"]
[BlackElo "2355"]
[TimeControl "180+2"]
[EndTime "14:38:06 PDT"]
[Termination "IMcoach won by resignation"]

1. e4 {[%clk 0:03:00.1]} 1... g6 {[%clk 0:02:56.1]} 2. d4 {[%clk 0:03:00.7]}
2... Bg7 {[%clk 0:02:57.7]} 3. Nc3 {[%clk 0:03:01.3]} 3... Nc6 {[%clk
0:02:59.2]} 4. d5 {[%clk 0:03:00.5]} 4... Nb8 {[%clk 0:02:59.9]} 5. Be3 {[%clk
0:02:58.7]} 5... d6 {[%clk 0:03:01.2]} 6. Qd2 {[%clk 0:02:59.4]} 6... Nd7 {[%clk
0:03:02.2]} 7. O-O-O {[%clk 0:02:59.4]} 7... c6 {[%clk 0:03:02.7]} 8. f3 {[%clk
0:02:59.2]} 8... cxd5 {[%clk 0:03:00.5]} 9. Nxd5 {[%clk 0:02:59.6]} 9... Ngf6
{[%clk 0:03:00.3]} 10. Nxf6+ {[%clk 0:02:58]} 10... Nxf6 {[%clk 0:02:56.9]} 11.
g4 {[%clk 0:02:58.3]} 11... O-O {[%clk 0:02:43.9]} 12. Kb1 {[%clk 0:02:58.2]}
12... Be6 {[%clk 0:02:17.7]} 13. Ne2 {[%clk 0:02:58.3]} 13... Rc8 {[%clk
0:02:10.3]} 14. Nd4 {[%clk 0:02:56.6]} 14... Bc4 {[%clk 0:02:10.8]} 15. Bh6
{[%clk 0:02:48.8]} 15... Rc5 {[%clk 0:02:04.7]} 16. Bxg7 {[%clk 0:02:44.3]}
16... Kxg7 {[%clk 0:02:05.4]} 17. h4 {[%clk 0:02:43.8]} 17... Bxf1 {[%clk
0:01:19.9]} 18. Rdxf1 {[%clk 0:02:42.8]} 18... Qa5 {[%clk 0:01:15.2]} 19. Qxa5
{[%clk 0:02:26.3]} 19... Rxa5 {[%clk 0:01:16]} 20. c4 {[%clk 0:02:20.8]} 20...
Rc5 {[%clk 0:01:10.6]} 21. b3 {[%clk 0:02:20.8]} 21... a6 {[%clk 0:01:00.4]} 22.
a4 {[%clk 0:02:21]} 22... h5 {[%clk 0:00:46]} 23. g5 {[%clk 0:02:21.1]} 23...
Nd7 {[%clk 0:00:46.9]} 24. Kb2 {[%clk 0:02:21.2]} 24... Ne5 {[%clk 0:00:45.7]}
25. Rd1 {[%clk 0:02:17]} 25... Rfc8 {[%clk 0:00:42.1]} 26. f4 {[%clk 0:02:08.3]}
26... Ng4 {[%clk 0:00:41.7]} 27. Rd2 {[%clk 0:01:59.4]} 27... e5 {[%clk
0:00:23.1]} 28. Ne2 {[%clk 0:01:52.6]} 28... Nf2 {[%clk 0:00:23.6]} 29. Rf1
{[%clk 0:01:33.6]} 29... Nxe4 {[%clk 0:00:24.4]} 30. Rd3 {[%clk 0:01:32.6]}
30... b5 {[%clk 0:00:24.5]} 31. Re3 {[%clk 0:01:21.1]} 31... d5 {[%clk
0:00:16.2]} 32. cxd5 {[%clk 0:01:03.2]} 32... Rc2+ {[%clk 0:00:16.9]} 33. Ka3
{[%clk 0:01:00.1]} 33... Nd2 {[%clk 0:00:14.3]} 34. Rd1 {[%clk 0:00:53]} 34...
bxa4 {[%clk 0:00:13.7]} 35. d6 {[%clk 0:00:20.6]} 35... axb3 {[%clk 0:00:11.2]}
36. Rd3 {[%clk 0:00:16.7]} 36... Nc4+ {[%clk 0:00:09.4]} 37. Kxb3 {[%clk
0:00:17.2]} 37... Rb2+ {[%clk 0:00:09.6]} 38. Kc3 {[%clk 0:00:17.3]} 38... Rxe2
{[%clk 0:00:07.2]} 39. d7 {[%clk 0:00:17]} 39... Rd8 {[%clk 0:00:07.6]} 40. Kxc4
{[%clk 0:00:17.7]} 40... exf4 {[%clk 0:00:08.9]} 41. Rd6 {[%clk 0:00:17.3]}
41... f3 {[%clk 0:00:08]} 42. Rf1 {[%clk 0:00:14.8]} 42... Re7 {[%clk
0:00:06.9]} 43. Rxf3 {[%clk 0:00:14.8]} 43... Rexd7 {[%clk 0:00:08]} 44. Rxa6
{[%clk 0:00:15.4]} 44... Rd4+ {[%clk 0:00:08.1]} 45. Kc3 {[%clk 0:00:16.1]}
45... R8d7 {[%clk 0:00:08.6]} 46. Rh3 {[%clk 0:00:13.2]} 46... Rg4 {[%clk
0:00:08.5]} 47. Rf6 {[%clk 0:00:12.7]} 47... Re7 {[%clk 0:00:09.1]} 48. Kd3
{[%clk 0:00:11]} 48... Ra4 {[%clk 0:00:09.3]} 49. Rhf3 {[%clk 0:00:10.9]} 49...
Ra3+ {[%clk 0:00:10.5]} 50. Kd4 {[%clk 0:00:11]} 50... Rxf3 {[%clk 0:00:11.9]}
51. Rxf3 {[%clk 0:00:11.9]} 51... Ra7 {[%clk 0:00:13.8]} 52. Rh3 {[%clk
0:00:11.2]} 52... Ra4+ {[%clk 0:00:13.6]} 53. Ke5 {[%clk 0:00:11.8]} 53... Kf8
{[%clk 0:00:12.3]} 54. Rh2 {[%clk 0:00:11.1]} 54... Ke7 {[%clk 0:00:13]} 55. Rh3
{[%clk 0:00:11.9]} 55... Ra5+ {[%clk 0:00:13.5]} 56. Ke4 {[%clk 0:00:12.9]}
56... Ke6 {[%clk 0:00:14.9]} 57. Rh1 {[%clk 0:00:13.6]} 57... Ra4+ {[%clk
0:00:15.9]} 58. Ke3 {[%clk 0:00:11.2]} 58... Ke5 {[%clk 0:00:14.9]} 59. Rf1
{[%clk 0:00:09.3]} 59... Rxh4 {[%clk 0:00:13.5]} 60. Rxf7 {[%clk 0:00:09.6]}
60... Rg4 {[%clk 0:00:14.7]} 61. Kf3 {[%clk 0:00:09.7]} 61... Rxg5 {[%clk
0:00:15.4]} 62. Ra7 {[%clk 0:00:10.6]} 62... Rf5+ {[%clk 0:00:15.6]} 63. Kg3
{[%clk 0:00:11.1]} 63... Kf6 {[%clk 0:00:17.1]} 64. Ra6+ {[%clk 0:00:11]} 64...
Kg5 {[%clk 0:00:18.6]} 65. Ra3 {[%clk 0:00:10.2]} 65... h4+ {[%clk 0:00:19.4]}
66. Kh3 {[%clk 0:00:11.4]} 66... Kh5 {[%clk 0:00:20.6]} 67. Ra8 {[%clk
0:00:08.2]} 67... Rf3+ {[%clk 0:00:21]} 68. Kg2 {[%clk 0:00:08.6]} 68... Rg3+
{[%clk 0:00:22.1]} 69. Kh2 {[%clk 0:00:09.2]} 69... g5 {[%clk 0:00:23.5]} 70.
Ra4 {[%clk 0:00:07.5]} 70... Rb3 {[%clk 0:00:22.3]} 71. Rc4 {[%clk 0:00:06.9]}
71... Kg6 {[%clk 0:00:16.8]} 72. Rc6+ {[%clk 0:00:05.9]} 72... Kf5 {[%clk
0:00:18]} 73. Rc5+ {[%clk 0:00:06.7]} 73... Kg4 {[%clk 0:00:18.1]} 74. Rc4+
{[%clk 0:00:07.7]} 74... Kh5 {[%clk 0:00:19.5]} 75. Rc5 {[%clk 0:00:08.9]} 75...
Rb2+ {[%clk 0:00:17.8]} 76. Kh3 {[%clk 0:00:09.7]} 76... Rb3+ {[%clk 0:00:18.1]}
77. Kh2 {[%clk 0:00:10.5]} 77... Kg6 {[%clk 0:00:19.2]} 78. Rc6+ {[%clk
0:00:10.8]} 78... Kf5 {[%clk 0:00:19.5]} 79. Rc5+ {[%clk 0:00:12]} 79... Kf4
{[%clk 0:00:20.2]} 80. Rc4+ {[%clk 0:00:13]} 80... Kf3 {[%clk 0:00:21.6]} 81.
Kh3 {[%clk 0:00:10.5]} 81... Kf2+ {[%clk 0:00:22.1]} 82. Kh2 {[%clk 0:00:09.8]}
82... Rg3 {[%clk 0:00:21.6]} 83. Rc2+ {[%clk 0:00:08.7]} 83... Ke3 {[%clk
0:00:21.9]} 84. Rc3+ {[%clk 0:00:09.7]} 84... Kf2 {[%clk 0:00:22.7]} 85. Rc2+
{[%clk 0:00:10.5]} 85... Ke1 {[%clk 0:00:24.1]} 86. Rc1+ {[%clk 0:00:08.4]}
86... Kd2 {[%clk 0:00:25]} 87. Rc8 {[%clk 0:00:08.5]} 87... g4 {[%clk
0:00:25.6]} 88. Rh8 {[%clk 0:00:06.8]} 88... Rh3+ {[%clk 0:00:26.7]} 89. Kg2
{[%clk 0:00:08]} 89... Ke3 {[%clk 0:00:28]} 90. Re8+ {[%clk 0:00:08.1]} 90...
Kf4 {[%clk 0:00:29.1]} 91. Rf8+ {[%clk 0:00:09.2]} 91... Kg5 {[%clk 0:00:30.3]}
92. Rg8+ {[%clk 0:00:10.3]} 92... Kf5 {[%clk 0:00:31.8]} 93. Rf8+ {[%clk
0:00:11.3]} 93... Ke6 {[%clk 0:00:31.9]} 94. Re8+ {[%clk 0:00:12.1]} 94... Kf7
{[%clk 0:00:32.6]} 95. Re5 {[%clk 0:00:12.9]} 95... Rg3+ {[%clk 0:00:33.7]} 96.
Kh2 {[%clk 0:00:13.7]} 96... Kg6 {[%clk 0:00:35.6]} 97. Ra5 {[%clk 0:00:13.6]}
97... Rb3 {[%clk 0:00:35]} 98. Kg2 {[%clk 0:00:10.9]} 98... h3+ {[%clk
0:00:35.9]} 99. Kh2 {[%clk 0:00:11.7]} 99... Rb2+ {[%clk 0:00:37.1]} 100. Kg3
{[%clk 0:00:12]} 100... Rg2+ {[%clk 0:00:37.7]} 101. Kf4 {[%clk 0:00:11.8]}
101... h2 {[%clk 0:00:38.7]} 102. Ra6+ {[%clk 0:00:12.4]} 102... Kg7 {[%clk
0:00:35.4]} 103. Ra7+ {[%clk 0:00:13.1]} 103... Kf8 {[%clk 0:00:35.8]} 104. Rh7
{[%clk 0:00:13.3]} 104... g3 {[%clk 0:00:36.7]} 105. Kg5 {[%clk 0:00:07.4]}
105... Rg1 {[%clk 0:00:37.5]} 0-1

[Event "*** MasterClass Titled Tuesday Blitz"]
[Site "Chess.com"]
[Date "2017.08.01"]
[Round "7"]
[White "dzhumagaliev"]
[Black "Fins0905"]
[Result "1/2-1/2"]
[WhiteElo "2517"]
[BlackElo "2427"]
[TimeControl "180+2"]
[EndTime "14:41:03 PDT"]
[Termination "Game drawn by agreement"]

1. h4 {[%clk 0:03:01.6]} 1... d5 {[%clk 0:02:52]} 2. h5 {[%clk 0:03:03.5]} 2...
e5 {[%clk 0:02:50.9]} 3. c3 {[%clk 0:03:04.1]} 3... c5 {[%clk 0:02:48.1]} 4. d3
{[%clk 0:03:05.5]} 4... h6 {[%clk 0:02:44.1]} 5. e4 {[%clk 0:03:06.5]} 5... Nf6
{[%clk 0:02:43.9]} 6. Nd2 {[%clk 0:03:06]} 6... Nc6 {[%clk 0:02:43.5]} 7. Be2
{[%clk 0:03:06.5]} 7... Be7 {[%clk 0:02:39.1]} 8. Qc2 {[%clk 0:03:07.2]} 8...
Be6 {[%clk 0:02:39.5]} 9. Nf1 {[%clk 0:03:07.7]} 9... Rc8 {[%clk 0:02:26]} 10.
Ng3 {[%clk 0:03:07.6]} 10... O-O {[%clk 0:02:20.7]} 11. Nf3 {[%clk 0:03:06.7]}
11... b5 {[%clk 0:02:18.3]} 12. O-O {[%clk 0:03:03.4]} 12... Qd7 {[%clk
0:02:03]} 13. Rd1 {[%clk 0:02:54.9]} 13... Rfd8 {[%clk 0:02:03.2]} 14. Re1
{[%clk 0:02:29.8]} 14... Bf8 {[%clk 0:01:42]} 15. Nh4 {[%clk 0:02:30]} 15... d4
{[%clk 0:01:34.9]} 16. Nhf5 {[%clk 0:02:14.1]} 16... Ne7 {[%clk 0:01:21.3]} 17.
Nxe7+ {[%clk 0:01:54.1]} 17... Bxe7 {[%clk 0:01:23.2]} 18. a4 {[%clk 0:01:31.9]}
18... a6 {[%clk 0:01:19.7]} 19. axb5 {[%clk 0:01:29.4]} 19... axb5 {[%clk
0:01:21.1]} 20. cxd4 {[%clk 0:01:02.3]} 20... cxd4 {[%clk 0:01:20.6]} 21. Qd1
{[%clk 0:01:02.7]} 21... b4 {[%clk 0:01:16.2]} 22. Bd2 {[%clk 0:01:00]} 22... b3
{[%clk 0:01:15.9]} 23. Ba5 {[%clk 0:01:00.2]} 23... Re8 {[%clk 0:01:14.5]} 24.
Qb1 {[%clk 0:00:50.5]} 24... Qb5 {[%clk 0:00:58]} 25. Rc1 {[%clk 0:00:42.6]}
25... Nd7 {[%clk 0:00:52.4]} 26. Bd2 {[%clk 0:00:35.2]} 26... Ra8 {[%clk
0:00:36.1]} 27. Rc7 {[%clk 0:00:28.5]} 27... Qb6 {[%clk 0:00:28.9]} 28. Rxa8
{[%clk 0:00:22.7]} 28... Rxa8 {[%clk 0:00:30.8]} 29. Qc1 {[%clk 0:00:23.8]}
29... Bf8 {[%clk 0:00:29]} 30. Nf5 {[%clk 0:00:23.7]} 30... Ra1 {[%clk
0:00:24.7]} 31. Qxa1 {[%clk 0:00:19.6]} 31... Qxc7 {[%clk 0:00:26.3]} 32. Bd1
{[%clk 0:00:19.8]} 32... Qb7 {[%clk 0:00:24.3]} 33. Qa5 {[%clk 0:00:17.4]} 33...
Nc5 {[%clk 0:00:22.5]} 34. Be2 {[%clk 0:00:13.9]} 34... Bxf5 {[%clk 0:00:21.1]}
35. exf5 {[%clk 0:00:14.9]} 35... e4 {[%clk 0:00:22.8]} 36. Qd8 {[%clk
0:00:07.3]} 36... exd3 {[%clk 0:00:13.4]} 37. Bf3 {[%clk 0:00:07.9]} 37... Qe7
{[%clk 0:00:12]} 38. Qd5 {[%clk 0:00:08.9]} 38... Qf6 {[%clk 0:00:08.5]} 39. Bb4
{[%clk 0:00:09.6]} 39... Qd6 {[%clk 0:00:06.6]} 40. Qa8 {[%clk 0:00:06.3]} 40...
Qe5 {[%clk 0:00:05.2]} 41. Bd2 {[%clk 0:00:07.1]} 41... Nd7 {[%clk 0:00:04.2]}
42. Bc6 {[%clk 0:00:07.1]} 42... Nc5 {[%clk 0:00:04.7]} 43. Bf3 {[%clk
0:00:08.1]} 43... Qe7 {[%clk 0:00:05.8]} 44. Qc8 {[%clk 0:00:08.5]} 44... Qd7
{[%clk 0:00:06.7]} 45. Qa8 {[%clk 0:00:08.9]} 45... Qxf5 {[%clk 0:00:07.7]} 46.
Qc6 {[%clk 0:00:09.4]} 46... Qe5 {[%clk 0:00:08.6]} 47. Qc8 {[%clk 0:00:09.9]}
47... Ne6 {[%clk 0:00:09.9]} 48. Bb4 {[%clk 0:00:10.1]} 48... Qf6 {[%clk
0:00:09.5]} 49. Bd5 {[%clk 0:00:10.3]} 49... Qd8 {[%clk 0:00:10.9]} 50. Bxe6
{[%clk 0:00:11]} 50... Qxc8 {[%clk 0:00:12]} 51. Bxc8 {[%clk 0:00:11.9]} 51...
Bxb4 {[%clk 0:00:13.7]} 52. Bg4 {[%clk 0:00:12.9]} 52... Bc3 {[%clk 0:00:14.6]}
53. Bd1 {[%clk 0:00:13.4]} 53... Bxb2 {[%clk 0:00:15.2]} 54. Bxb3 {[%clk
0:00:15]} 54... Bc3 {[%clk 0:00:15.1]} 55. Bc4 {[%clk 0:00:14.9]} 55... d2
{[%clk 0:00:15.2]} 56. Bb3 {[%clk 0:00:16]} 56... d3 {[%clk 0:00:15.7]} 57. f4
{[%clk 0:00:17.1]} 57... Bd4+ {[%clk 0:00:16.6]} 58. Kh2 {[%clk 0:00:17.3]}
58... Kf8 {[%clk 0:00:17.5]} 59. Kg3 {[%clk 0:00:17.7]} 59... f5 {[%clk
0:00:17.7]} 60. Kf3 {[%clk 0:00:19.1]} 60... Ke7 {[%clk 0:00:18.9]} 61. g4
{[%clk 0:00:20.6]} 61... Kd6 {[%clk 0:00:18.7]} 62. gxf5 {[%clk 0:00:19.8]}
62... Kc5 {[%clk 0:00:15.8]} 63. Ke4 {[%clk 0:00:21]} 63... Kb4 {[%clk
0:00:16.8]} 64. Bd1 {[%clk 0:00:15.5]} 64... Kc3 {[%clk 0:00:18.2]} 65. Ba4
{[%clk 0:00:16.5]} 65... Bf6 {[%clk 0:00:18.1]} 66. Ke3 {[%clk 0:00:14.5]} 66...
Bh4 {[%clk 0:00:15.4]} 67. Bd1 {[%clk 0:00:14.2]} 67... Bg3 {[%clk 0:00:15.3]}
68. Ba4 {[%clk 0:00:14.3]} 68... Kb4 {[%clk 0:00:12.4]} 69. Bd1 {[%clk 0:00:15]}
69... Kc3 {[%clk 0:00:13.8]} 70. Ba4 {[%clk 0:00:16.2]} 70... Bh2 {[%clk
0:00:15.4]} 71. Bd1 {[%clk 0:00:13.6]} 71... Bg1+ {[%clk 0:00:16.7]} 72. Ke4
{[%clk 0:00:14.8]} 72... Bf2 {[%clk 0:00:17.8]} 73. Ba4 {[%clk 0:00:14.5]} 73...
Bb6 {[%clk 0:00:18.2]} 74. Bd1 {[%clk 0:00:15.5]} 74... Bc7 {[%clk 0:00:19.6]}
75. Ba4 {[%clk 0:00:16]} 75... Bb8 {[%clk 0:00:20.6]} 76. Bd1 {[%clk 0:00:16.8]}
76... Bc7 {[%clk 0:00:14.3]} 77. Ba4 {[%clk 0:00:17.7]} 77... Bd6 {[%clk
0:00:15]} 78. Bd1 {[%clk 0:00:18.6]} 78... Kb2 {[%clk 0:00:15.7]} 79. Kxd3
{[%clk 0:00:18]} 79... Bxf4 {[%clk 0:00:16.4]} 80. Ke2 {[%clk 0:00:17.8]} 80...
Kc1 {[%clk 0:00:17.4]} 81. Ba4 {[%clk 0:00:18.9]} 81... Kb2 {[%clk 0:00:17.5]}
82. Bd1 {[%clk 0:00:19.7]} 82... Kc3 {[%clk 0:00:19]} 83. Kf3 {[%clk 0:00:20.9]}
83... Bg5 {[%clk 0:00:19.9]} 84. Ke4 {[%clk 0:00:20.9]} 84... Kb2 {[%clk
0:00:16.8]} 85. Kd3 {[%clk 0:00:21.2]} 85... Kc1 {[%clk 0:00:17.3]} 86. Ke2
{[%clk 0:00:22.5]} 86... Bf4 {[%clk 0:00:18.6]} 87. Ba4 {[%clk 0:00:23.3]} 87...
Kb2 {[%clk 0:00:19.2]} 88. Kf3 {[%clk 0:00:19.4]} 88... Bg5 {[%clk 0:00:20.4]}
89. Bd1 {[%clk 0:00:17.9]} 89... Kc3 {[%clk 0:00:20.9]} 90. Ke4 {[%clk
0:00:18.1]} 90... Kc4 {[%clk 0:00:21.9]} 91. Be2+ {[%clk 0:00:17.8]} 91... Kc5
{[%clk 0:00:23]} 92. Bd1 {[%clk 0:00:18.9]} 92... Kd6 {[%clk 0:00:23.9]} 93. Be2
{[%clk 0:00:19.8]} 93... Ke7 {[%clk 0:00:25]} 94. Bd1 {[%clk 0:00:21]} 94... Bh4
{[%clk 0:00:26.3]} 95. Be2 {[%clk 0:00:18.7]} 95... Kf6 {[%clk 0:00:27.2]} 96.
Kd3 {[%clk 0:00:17.2]} 96... Be1 {[%clk 0:00:23.6]} 97. Ke4 {[%clk 0:00:17.3]}
97... Kg5 {[%clk 0:00:24.8]} 98. Bd1 {[%clk 0:00:17.4]} 98... Bg3 {[%clk
0:00:24.9]} 99. Be2 {[%clk 0:00:15]} 99... Bc7 {[%clk 0:00:25.4]} 100. Bd1
{[%clk 0:00:15.7]} 100... Kh4 {[%clk 0:00:26.2]} 101. Ke3 {[%clk 0:00:15]}
101... Ba5 {[%clk 0:00:23.9]} 102. Kf4 {[%clk 0:00:16.1]} 102... Kh3 {[%clk
0:00:22.7]} 103. Kf3 {[%clk 0:00:14.6]} 103... Kh2 {[%clk 0:00:22.3]} 104. Kf2
{[%clk 0:00:13.8]} 104... Bd8 {[%clk 0:00:22.2]} 105. Ke3 {[%clk 0:00:13.1]}
105... Bg5+ {[%clk 0:00:22.8]} 106. Kf2 {[%clk 0:00:14.3]} 106... Be7 {[%clk
0:00:19.7]} 107. Ke3 {[%clk 0:00:14.5]} 107... Bb4 {[%clk 0:00:20.5]} 108. Kf2
{[%clk 0:00:15.5]} 108... Kh3 {[%clk 0:00:19.7]} 109. Kf3 {[%clk 0:00:16.4]}
109... Be7 {[%clk 0:00:19.2]} 110. Be2 {[%clk 0:00:15.9]} 110... Bg5 {[%clk
0:00:19.4]} 111. Bd1 {[%clk 0:00:16.7]} 111... Kh4 {[%clk 0:00:20.2]} 112. Kf2
{[%clk 0:00:17]} 112... Be7 {[%clk 0:00:16.4]} 113. Ke3 {[%clk 0:00:14.8]}
113... Bb4 {[%clk 0:00:14.8]} 114. Kf4 {[%clk 0:00:15.9]} 114... Bd6+ {[%clk
0:00:14.3]} 115. Ke3 {[%clk 0:00:17]} 115... Bb4 {[%clk 0:00:15.3]} 116. Kf4
{[%clk 0:00:17.7]} 116... Kh3 {[%clk 0:00:15.8]} 117. Kf3 {[%clk 0:00:18.3]}
117... Kh4 {[%clk 0:00:15.3]} 118. Kf4 {[%clk 0:00:18.4]} 118... Be7 {[%clk
0:00:16.2]} 119. Ke3 {[%clk 0:00:19]} 119... Bg5+ {[%clk 0:00:16.3]} 120. Kf2
{[%clk 0:00:20.2]} 120... Kh3 {[%clk 0:00:17.1]} 121. Kf3 {[%clk 0:00:19.7]}
121... Kh2 {[%clk 0:00:17.5]} 122. Kf2 {[%clk 0:00:20.6]} 122... Be7 {[%clk
0:00:18]} 123. Bg4 {[%clk 0:00:19.4]} 123... Bc5+ {[%clk 0:00:14.9]} 124. Kf1
{[%clk 0:00:15.5]} 124... Kg3 {[%clk 0:00:14.2]} 125. Bd1 {[%clk 0:00:16.1]}
125... Kf4 {[%clk 0:00:08.5]} 126. Ke2 {[%clk 0:00:17.3]} 126... Bb4 {[%clk
0:00:08.7]} 127. f6 {[%clk 0:00:17.8]} 127... gxf6 {[%clk 0:00:09.8]} 128. Kd3
{[%clk 0:00:19.1]} 128... f5 {[%clk 0:00:09.8]} 129. Ke2 {[%clk 0:00:18.7]}
129... Kg3 {[%clk 0:00:10.7]} 130. Ke3 {[%clk 0:00:20.1]} 130... f4+ {[%clk
0:00:10.4]} 131. Ke4 {[%clk 0:00:21.1]} 131... Bc5 {[%clk 0:00:08]} 132. Bf3
{[%clk 0:00:21]} 132... Be3 {[%clk 0:00:08.4]} 133. Bd1 {[%clk 0:00:17.1]}
133... Kf2 {[%clk 0:00:09.4]} 134. Kd3 {[%clk 0:00:16.3]} 134... f3 {[%clk
0:00:08.4]} 135. Ke4 {[%clk 0:00:16.9]} 135... Ke1 {[%clk 0:00:05.5]} 136. Bxf3
{[%clk 0:00:17.7]} 136... Bg5 {[%clk 0:00:03]} 137. Kf5 {[%clk 0:00:18.9]}
137... d1=Q {[%clk 0:00:04.9]} 138. Bxd1 {[%clk 0:00:19.6]} 138... Kxd1 {[%clk
0:00:06.8]} 139. Kg4 {[%clk 0:00:21.1]} 139... Ke2 {[%clk 0:00:08.3]} 140. Kg3
{[%clk 0:00:22.1]} 140... Kf1 {[%clk 0:00:09.3]} 141. Kh2 {[%clk 0:00:23.2]}
141... Kf2 {[%clk 0:00:10.7]} 142. Kh1 {[%clk 0:00:24.7]} 142... Kg3 {[%clk
0:00:08.1]} 143. Kg1 {[%clk 0:00:25.8]} 143... Kh3 {[%clk 0:00:09.5]} 144. Kh1
{[%clk 0:00:26.8]} 144... Bf4 {[%clk 0:00:10.5]} 145. Kg1 {[%clk 0:00:28]}
145... Kh4 {[%clk 0:00:11.4]} 146. Kh1 {[%clk 0:00:29.4]} 146... Kxh5 {[%clk
0:00:11.5]} 147. Kg2 {[%clk 0:00:30.8]} 147... Kg4 {[%clk 0:00:12.6]} 148. Kh1
{[%clk 0:00:32.7]} 148... h5 {[%clk 0:00:13.2]} 1/2-1/2

[Event "*** MasterClass Titled Tuesday Blitz"]
[Site "Chess.com"]
[Date "2017.08.01"]
[Round "8"]
[White "sergiochess83"]
[Black "FairChess_on_YouTube"]
[Result "1-0"]
[WhiteElo "2678"]
[BlackElo "2740"]
[TimeControl "180+2"]
[EndTime "14:45:20 PDT"]
[Termination "sergiochess83 won by resignation"]

1. e4 {[%clk 0:03:01.9]} 1... g6 {[%clk 0:03:01.9]} 2. d4 {[%clk 0:03:02.2]}
2... Bg7 {[%clk 0:03:03.5]} 3. Nf3 {[%clk 0:03:02.5]} 3... c6 {[%clk 0:03:04.9]}
4. Bd3 {[%clk 0:03:02.3]} 4... d6 {[%clk 0:03:04.4]} 5. O-O {[%clk 0:03:02.3]}
5... Bg4 {[%clk 0:03:04.4]} 6. c3 {[%clk 0:03:00.9]} 6... e6 {[%clk 0:03:05.7]}
7. Nbd2 {[%clk 0:03:01.1]} 7... Ne7 {[%clk 0:03:05.3]} 8. h3 {[%clk 0:03:01.4]}
8... Bxf3 {[%clk 0:03:06.4]} 9. Nxf3 {[%clk 0:03:02.6]} 9... Nd7 {[%clk
0:03:07.7]} 10. Re1 {[%clk 0:03:02.7]} 10... O-O {[%clk 0:03:08.4]} 11. Be3
{[%clk 0:02:58.6]} 11... Re8 {[%clk 0:03:00.7]} 12. Qd2 {[%clk 0:02:56.8]} 12...
a5 {[%clk 0:03:01.8]} 13. a4 {[%clk 0:02:43.3]} 13... Rc8 {[%clk 0:03:01.8]} 14.
Rad1 {[%clk 0:02:40.6]} 14... d5 {[%clk 0:03:02.8]} 15. e5 {[%clk 0:02:36.8]}
15... c5 {[%clk 0:03:02.5]} 16. Bb5 {[%clk 0:02:34.9]} 16... cxd4 {[%clk
0:03:03.1]} 17. cxd4 {[%clk 0:02:33.7]} 17... Nc6 {[%clk 0:03:04]} 18. Bh6
{[%clk 0:02:25.1]} 18... Nb6 {[%clk 0:02:49.2]} 19. b3 {[%clk 0:02:21.3]} 19...
Nd7 {[%clk 0:02:29.5]} 20. h4 {[%clk 0:02:20.5]} 20... Nb4 {[%clk 0:02:28.2]}
21. h5 {[%clk 0:02:16.3]} 21... Rc2 {[%clk 0:02:15.5]} 22. Qf4 {[%clk
0:02:14.8]} 22... Rf8 {[%clk 0:02:14.4]} 23. Bxg7 {[%clk 0:01:57.8]} 23... Kxg7
{[%clk 0:02:12.5]} 24. Bxd7 {[%clk 0:01:58.3]} 24... Qxd7 {[%clk 0:02:06.3]} 25.
h6+ {[%clk 0:01:54.7]} 1-0

[Event "*** MasterClass Titled Tuesday Blitz"]
[Site "Chess.com"]
[Date "2017.08.01"]
[Round "8"]
[White "pedroholly22"]
[Black "Vrolijk"]
[Result "0-1"]
[WhiteElo "2294"]
[BlackElo "2502"]
[TimeControl "180+2"]
[EndTime "14:47:06 PDT"]
[Termination "Vrolijk won by checkmate"]

1. d4 {[%clk 0:03:01.9]} 1... Nf6 {[%clk 0:03:00.7]} 2. c4 {[%clk 0:03:02.5]}
2... e6 {[%clk 0:03:00.8]} 3. Nc3 {[%clk 0:03:01.8]} 3... c5 {[%clk 0:02:58.7]}
4. d5 {[%clk 0:02:57.4]} 4... exd5 {[%clk 0:02:59.2]} 5. cxd5 {[%clk 0:02:50.7]}
5... d6 {[%clk 0:03:00]} 6. e4 {[%clk 0:02:52.1]} 6... g6 {[%clk 0:03:00.7]} 7.
Bb5+ {[%clk 0:02:48.7]} 7... Bd7 {[%clk 0:03:00.4]} 8. Bd3 {[%clk 0:02:49.5]}
8... Bg7 {[%clk 0:03:00.4]} 9. f4 {[%clk 0:02:50.2]} 9... O-O {[%clk 0:02:59.1]}
10. Nf3 {[%clk 0:02:51.7]} 10... c4 {[%clk 0:02:54.3]} 11. Bc2 {[%clk
0:02:43.4]} 11... b5 {[%clk 0:02:55.1]} 12. O-O {[%clk 0:02:34.5]} 12... b4
{[%clk 0:02:49.7]} 13. Ne2 {[%clk 0:02:33]} 13... Bg4 {[%clk 0:02:42.8]} 14. Be3
{[%clk 0:02:22.8]} 14... Re8 {[%clk 0:02:39]} 15. Bd4 {[%clk 0:02:16.3]} 15...
Nxe4 {[%clk 0:02:38]} 16. Bxg7 {[%clk 0:02:15]} 16... Kxg7 {[%clk 0:02:39.9]}
17. Qd4+ {[%clk 0:02:11.1]} 17... Qf6 {[%clk 0:02:35.9]} 18. Qxc4 {[%clk
0:02:11.1]} 18... Bxf3 {[%clk 0:02:36]} 19. Rxf3 {[%clk 0:02:10.2]} 19... Nd2
{[%clk 0:02:36.7]} 20. Qd3 {[%clk 0:01:58.1]} 20... Nxf3+ {[%clk 0:02:34.6]} 21.
Qxf3 {[%clk 0:01:58.2]} 21... Qxb2 {[%clk 0:02:35.8]} 22. Rc1 {[%clk 0:01:44.3]}
22... Rxe2 {[%clk 0:02:35.3]} 23. Qxe2 {[%clk 0:01:45]} 23... Qxc1+ {[%clk
0:02:35.5]} 24. Kf2 {[%clk 0:01:46.5]} 24... Qxf4+ {[%clk 0:02:34.7]} 25. Ke1
{[%clk 0:01:45]} 25... Nd7 {[%clk 0:02:33.9]} 26. Bb3 {[%clk 0:01:37]} 26... Nc5
{[%clk 0:02:33.4]} 27. Qd2 {[%clk 0:01:25.7]} 27... Re8+ {[%clk 0:02:33.3]} 28.
Kd1 {[%clk 0:01:25.5]} 28... Qf1+ {[%clk 0:02:33.2]} 29. Kc2 {[%clk 0:01:25]}
29... Re2 {[%clk 0:02:33]} 30. Qxe2 {[%clk 0:00:16.1]} 30... Qxe2+ {[%clk
0:02:33.4]} 31. Kc1 {[%clk 0:00:18]} 31... Nd3+ {[%clk 0:02:34.8]} 32. Kb1
{[%clk 0:00:18]} 32... Qb2# {[%clk 0:02:36.7]} 0-1